bitfinex/quotes_ETHUSD_20250808
["timestamp","ask_amount","ask_price","bid_price","bid_amount"]
[1754694414656,3.894,4035.0,4034.9,0.001]
[1754694414862,4.3443,4035.0,4034.9,0.001]
[1754694416083,5.02965841,4035.0,4034.9,0.001]
[1754694416496,5.03807378,4035.0,4034.9,0.001]
[1754694417083,5.06905271,4035.0,4034.9,0.001]
[1754694418251,4.58777378,4035.0,4034.9,0.001]
[1754694418450,4.58777378,4035.0,4034.9,0.453]
[1754694418646,3.894,4035.0,4034.9,0.453]
[1754694419968,4.3443,4035.0,4034.9,0.001]
[1754694420166,3.894,4035.0,4034.9,0.001]
[1754694420367,0.124,4035.0,4034.9,2.93137616]
[1754694420573,3.894,4035.0,4034.9,2.93137616]
[1754694420780,0.124,4035.0,4034.9,3.51875418]
[1754694420983,0.4523,4035.6,4035.2,2.47814152]
[1754694421181,3.77,4035.5,4035.2,2.47814152]
[1754694421380,3.77,4035.5,4035.3,0.452]
[1754694421586,3.77,4035.5,4035.2,2.47816562]
[1754694421772,3.77,4035.5,4035.4,0.452]
[1754694422087,3.894,4035.5,4035.4,0.452]
[1754694422493,0.124,4035.5,4035.4,0.452]
[1754694422670,3.894,4035.5,4035.4,0.452]
[1754694423073,0.124,4035.5,4035.4,0.452]
[1754694423278,3.894,4035.5,4035.4,0.452]
[1754694424201,0.124,4035.5,4035.4,2.93006908]
[1754694424404,3.894,4035.5,4035.4,3.47089977]
[1754694424608,0.124,4035.5,4035.4,3.47089977]
[1754694424900,3.772,4035.6,4035.5,2.47800768]
[1754694425245,3.772,4035.6,4035.5,2.93000768]
[1754694428087,0.002,4035.6,4035.5,2.93000768]
[1754694428288,0.002,4035.6,4035.5,3.58368843]
[1754694428487,0.002,4035.6,4035.5,4.04758843]
[1754694432883,0.002,4035.6,4035.5,3.58368843]
[1754694434007,0.002,4035.6,4035.5,3.13168843]
[1754694434213,0.002,4035.6,4035.5,2.47800768]
[1754694434778,0.4523,4035.6,4035.5,2.47800768]
[1754694435581,0.002,4035.6,4035.5,2.47800768]
[1754694435783,0.002,4035.6,4035.5,2.93000768]
[1754694438814,0.002,4035.6,4035.5,2.47800768]
[1754694439001,0.4523,4035.6,4035.5,2.47800768]
[1754694439909,0.4523,4035.6,4035.2,0.124]
[1754694440127,0.4503,4035.5,4035.4,2.4780103]
[1754694440718,0.4503,4035.5,4035.1,5.47823633]
[1754694440719,0.4503,4035.5,4035.3,2.47812133]
[1754694440915,0.124,4035.5,4035.3,2.47812133]
[1754694441126,0.4503,4035.4,4035.1,2.47824669]
[1754694441351,0.4503,4035.3,4034.9,3.001]
[1754694441655,0.4503,4035.3,4035.2,2.4781867]
[1754694443022,0.124,4035.5,4035.2,2.4781867]
[1754694443226,0.5743,4035.5,4035.1,5.47823352]
[1754694443453,0.5743,4035.5,4035.3,2.47808335]
[1754694443659,0.5743,4035.5,4035.4,2.47806908]
[1754694444160,0.124,4035.5,4035.4,2.47806908]
[1754694444556,0.124,4035.5,4035.4,2.91086908]
[1754694445059,0.6049,4035.5,4035.2,2.47818723]
[1754694445280,0.6049,4035.5,4035.3,2.47811422]
[1754694445762,0.6049,4035.5,4035.3,2.47807873]
[1754694446061,0.4809,4035.4,4035.3,2.47807873]
[1754694446435,0.4809,4035.4,4035.1,2.47819897]
[1754694446761,0.51187663,4035.3,4034.9,0.001]
[1754694446949,0.124,4035.0,4034.9,0.001]
[1754694447462,0.124,4035.0,4034.9,2.47937616]
[1754694447632,0.124,4035.0,4034.9,2.91217616]
[1754694449740,0.124,4035.0,4034.9,0.4338]
[1754694449940,0.124,4035.0,4034.9,2.91217616]
[1754694450973,0.124,4035.0,4034.9,0.4338]
[1754694451176,0.124,4035.0,4034.9,2.91217616]
[1754694454048,0.124,4035.4,4034.9,3.87524266]
[1754694454249,0.124,4035.4,4035.3,2.47813049]
[1754694454749,0.124,4035.4,4035.0,2.91110122]
[1754694454750,0.124,4035.4,4035.2,2.47817823]
[1754694455152,0.124,4035.4,4035.2,2.91097823]
[1754694455372,0.124,4035.4,4035.3,2.47813049]
[1754694455778,0.124,4035.4,4035.3,2.91093049]
[1754694459973,0.124,4035.4,4035.3,0.4328]
[1754694460176,0.124,4035.4,4035.3,2.91093049]
[1754694461967,0.124,4035.4,4035.3,0.4328]
[1754694463869,0.6049,4035.4,4034.9,0.4338]
[1754694464080,0.124,4035.1,4034.9,0.001]
[1754694464765,0.124,4035.1,4035.0,0.4328]
[1754694466798,0.124,4035.1,4034.9,0.001]
[1754694466799,0.6049,4035.1,4034.9,0.001]
[1754694466981,0.124,4035.1,4034.9,0.001]
[1754694467182,0.4809,4035.0,4034.9,0.001]
[1754694467966,0.90094546,4035.0,4034.9,0.001]
[1754694468176,3.3792602,4035.0,4034.9,0.001]
[1754694468389,2.8983602,4035.0,4034.9,0.001]
[1754694468594,3.3792602,4035.0,4034.9,0.001]
[1754694471480,3.34828127,4035.0,4034.9,0.001]
[1754694472002,3.89828127,4035.0,4034.9,0.001]
[1754694472869,4.33108127,4035.0,4034.9,0.001]
[1754694475072,8.09908127,4035.0,4034.9,0.001]
[1754694486227,3.892,4035.0,4034.9,0.4587]
[1754694495107,3.892,4035.0,4034.9,0.001]
[1754694495108,7.37751474,4035.0,4034.9,0.001]
[1754694495443,7.91254085,4035.0,4034.9,0.001]
[1754694495645,7.45534085,4035.0,4034.9,0.001]
[1754694495937,8.20087494,4035.0,4034.9,0.4587]
[1754694496706,5.7225602,4035.0,4034.9,0.4587]
[1754694496908,8.20087494,4035.0,4034.9,0.4587]
[1754694497920,8.20087494,4035.0,4034.9,0.001]
[1754694498127,8.65807494,4035.0,4034.9,0.001]
[1754694498531,8.12304883,4035.0,4034.9,0.001]
[1754694498845,8.66685157,4035.0,4034.9,0.001]
[1754694500037,9.46508558,4035.0,4034.9,0.001]
[1754694504312,8.66685157,4035.0,4034.9,0.001]
[1754694514428,8.66885157,4035.0,4034.9,0.001]
[1754694522356,9.33808558,4035.0,4034.9,0.001]
[1754694526339,8.66885157,4035.0,4034.9,0.001]
[1754694532450,8.66885157,4035.0,4034.9,0.4749]
[1754694534892,4.90085157,4035.0,4034.9,0.4749]
[1754694535056,8.66785157,4035.0,4034.9,0.4749]
[1754694535252,8.21065157,4035.0,4034.9,0.4749]
[1754694540259,0.66980274,4035.0,4034.9,0.4749]
[1754694540591,3.399,4035.0,4034.9,0.9611]
[1754694540754,3.399,4035.0,4034.9,0.4749]
[1754694540755,3.523,4035.0,4034.9,0.4749]
[1754694544157,3.523,4035.0,4034.9,2.95327616]
[1754694544365,3.523,4035.0,4034.9,3.49645194]
[1754694544559,3.523,4035.0,4034.9,1.01807578]
[1754694544766,3.523,4035.0,4034.9,3.49645194]
[1754694545079,3.523,4035.0,4034.9,1.01807578]
[1754694546365,3.523,4035.0,4034.9,0.4749]
[1754694548473,7.02761474,4035.0,4034.9,0.001]
[1754694549076,4.5493,4035.0,4034.9,0.001]
[1754694549383,7.05859367,4035.0,4034.9,0.001]
[1754694549568,7.02761474,4035.0,4034.9,0.001]
[1754694552078,4.5493,4035.0,4034.9,0.001]
[1754694552792,7.02761474,4035.0,4034.9,0.001]
[1754694553459,0.674,4035.0,4034.9,0.001]
[1754694553657,4.439,4035.0,4034.9,0.4552]
[1754694555170,6.91731474,4035.0,4034.9,0.001]
[1754694555384,8.34723587,4035.0,4034.9,0.001]
[1754694555586,8.88163732,4035.0,4034.9,0.001]
[1754694557192,8.89005273,4035.0,4034.9,0.001]
[1754694557913,9.33195273,4035.0,4034.9,0.001]
[1754694558066,9.33195273,4035.0,4034.4,0.001]
[1754694558067,0.55,4034.9,4034.4,0.001]
[1754694558394,3.15262188,4034.5,4034.4,0.001]
[1754694558593,6.91762188,4034.5,4034.4,0.001]
[1754694558797,7.39392188,4034.5,4034.4,0.001]
[1754694560599,4.9153,4034.5,4034.4,0.001]
[1754694561804,7.39392188,4034.5,4034.4,0.001]
[1754694563395,8.45562089,4034.5,4034.4,0.001]
[1754694563695,8.90982089,4034.5,4034.4,0.001]
[1754694565116,9.44427961,4034.5,4034.4,0.001]
[1754694565318,9.88817961,4034.5,4034.4,0.001]
[1754694571520,9.44427961,4034.5,4034.4,0.001]
[1754694580208,0.124,4034.5,4034.4,2.91378332]
[1754694580451,3.764,4034.5,4034.4,2.91378332]
[1754694580708,3.888,4034.5,4034.4,2.91378332]
[1754694581014,3.888,4034.5,4034.4,11.41846257]
[1754694581208,3.888,4034.5,4034.4,12.80818522]
[1754694583131,3.888,4034.5,4034.4,4.30350597]
[1754694583330,3.888,4034.5,4034.4,2.91258332]
[1754694585316,0.124,4034.5,4034.4,2.91258332]
[1754694585521,3.887,4034.5,4034.4,2.91258332]
[1754694586437,3.887,4034.5,4034.4,0.001]
[1754694586733,4.437,4034.5,4034.4,0.001]
[1754694586941,7.40152188,4034.5,4034.4,0.001]
[1754694588811,8.47720542,4034.5,4034.4,0.001]
[1754694590417,8.5259736,4034.5,4034.4,0.001]
[1754694590624,7.45029006,4034.5,4034.4,0.001]
[1754694590822,7.93619006,4034.5,4034.4,0.001]
[1754694597649,0.55,4034.2,4033.6,0.46153897]
[1754694597853,0.55,4034.2,4033.8,0.461]
[1754694597854,3.887,4034.1,4033.8,0.461]
[1754694598025,0.124,4033.7,4033.6,0.00053897]
[1754694598226,3.887,4033.7,4033.6,0.00053897]
[1754694598638,3.887,4033.7,4033.6,0.46153897]
[1754694599653,3.887,4033.7,4033.6,0.00053897]
[1754694599863,3.887,4033.7,4033.6,0.46153897]
[1754694603362,4.3854,4033.7,4033.6,0.46153897]
[1754694603560,4.9354,4033.7,4033.6,0.00053897]
[1754694604337,4.437,4033.7,4033.6,0.46153897]
[1754694605227,0.124,4033.7,4033.6,2.9407139]
[1754694605432,0.124,4033.7,4033.6,4.3333813]
[1754694605433,3.886,4033.7,4033.6,4.3333813]
[1754694605862,0.124,4033.7,4033.6,4.3333813]
[1754694606061,3.886,4033.9,4033.8,2.47905201]
[1754694606443,3.886,4033.9,4033.8,2.94005201]
[1754694606641,3.886,4033.9,4033.8,3.37529279]
[1754694608058,3.886,4033.9,4033.8,0.89624078]
[1754694608245,3.886,4033.9,4033.8,2.94005201]
[1754694608446,3.886,4033.9,4033.7,2.4790976]
[1754694608669,3.886,4033.9,4033.8,0.461]
[1754694608960,3.886,4033.9,4033.7,2.9400976]
[1754694609564,4.3844,4033.9,4033.7,0.461]
[1754694609763,0.4984,4033.8,4033.6,2.4796975]
[1754694610064,0.4984,4033.8,4033.7,0.461]
[1754694610666,3.886,4033.9,4033.7,0.461]
[1754694610862,4.3844,4033.9,4033.7,0.461]
[1754694611158,4.3844,4033.9,4033.7,2.94011117]
[1754694611363,4.3844,4033.9,4033.8,0.461]
[1754694613753,4.3844,4033.9,4033.6,2.94069965]
[1754694613959,4.3844,4033.9,4033.7,0.461]
[1754694614459,0.4984,4033.8,4033.6,0.00053897]
[1754694614661,3.762,4033.7,4033.6,0.00053897]
[1754694614869,4.2604,4033.7,4033.6,0.00053897]
[1754694616037,7.71911346,4033.7,4033.6,0.00053897]
[1754694616273,8.55692168,4033.7,4033.6,0.00053897]
[1754694616734,8.12732168,4033.7,4033.6,0.00053897]
[1754694617753,8.55692168,4033.7,4033.6,0.00053897]
[1754694618275,9.09175597,4033.7,4033.6,0.00053897]
[1754694618569,8.55692168,4033.7,4033.6,0.00053897]
[1754694620272,9.09157302,4033.7,4033.6,0.00053897]
[1754694620498,8.55692168,4033.7,4033.6,0.00053897]
[1754694622373,8.55892168,4033.7,4033.6,0.00053897]
[1754694623471,6.07980822,4033.7,4033.6,0.00053897]
[1754694623675,5.65020822,4033.7,4033.6,0.00053897]
[1754694624780,8.12932168,4033.7,4033.6,0.00053897]
[1754694625273,5.65020822,4033.7,4033.6,0.00053897]
[1754694626981,8.12932168,4033.7,4033.6,0.00053897]
[1754694629068,5.65020822,4033.7,4033.6,0.00053897]
[1754694632274,0.55,4033.6,4033.5,0.00023426]
[1754694632477,1.1715,4033.6,4033.5,0.00023426]
[1754694639689,1.1715,4033.6,4033.5,0.46013426]
[1754694641501,0.674,4033.6,4033.5,0.46013426]
[1754694643908,1.1715,4033.6,4033.5,0.46013426]
[1754694645384,1.1715,4033.6,4033.5,0.00023426]
[1754694645586,1.70664711,4033.6,4033.5,0.00023426]
[1754694648917,1.70686971,4033.6,4033.5,0.00023426]
[1754694656143,3.884,4033.6,4033.5,2.95147065]
[1754694656437,3.884,4033.6,4033.5,3.49465179]
[1754694658411,3.761,4033.7,4033.6,2.47917493]
[1754694658616,3.761,4033.7,4033.6,2.95117493]
[1754694660645,0.002,4033.7,4033.6,5.95117493]
[1754694660939,0.002,4033.7,4033.6,11.12010197]
[1754694661743,0.002,4033.7,4033.6,19.62478122]
[1754694662156,0.002,4033.7,4033.6,7.35990197]
[1754694662336,0.002,4033.7,4033.6,7.23590197]
[1754694666338,0.002,4033.7,4033.6,2.47917493]
[1754694666534,0.4617,4033.7,4033.6,2.47917493]
[1754694667358,0.4617,4033.7,4033.5,2.47946815]
[1754694667546,0.5837,4033.6,4033.5,2.47946815]
[1754694668142,0.5837,4033.6,4033.5,2.95146815]
[1754694668455,0.124,4033.6,4033.5,2.95146815]
[1754694671871,0.5837,4033.6,4033.5,2.47946815]
[1754694672071,1.1337,4033.6,4033.5,0.00023426]
[1754694673937,0.124,4033.6,4033.5,2.95147065]
[1754694683285,0.5837,4033.6,4033.5,2.95147065]
[1754694686959,0.5837,4033.6,4033.5,2.47947065]
[1754694687160,1.5826,4033.6,4033.5,0.00023426]
[1754694687376,1.34716,4033.6,4033.5,0.00023426]
[1754694687577,1.34716,4033.6,4033.5,2.47947065]
[1754694687578,1.1337,4033.6,4033.5,2.47947065]
[1754694687777,1.1337,4033.6,4033.5,2.94957065]
[1754694688153,1.1357,4033.6,4033.5,2.47947065]
[1754694699489,0.5857,4033.6,4033.5,2.47947065]
[1754694700125,1.1357,4033.6,4033.5,2.47947065]
[1754694701943,1.5846,4033.6,4033.5,0.00023426]
[1754694702154,1.79677723,4033.6,4033.5,0.00023426]
[1754694703183,1.24677723,4033.6,4033.5,0.00023426]
[1754694703660,1.79677723,4033.6,4033.5,0.00023426]
[1754694704607,4.30694184,4033.6,4033.5,0.00023426]
[1754694704915,8.59911416,4033.6,4033.5,0.00023426]
[1754694705115,8.56812448,4033.6,4033.5,0.00023426]
[1754694705440,6.08894955,4033.6,4033.5,0.00023426]
[1754694705935,8.56812448,4033.6,4033.5,0.00023426]
[1754694708829,15.65391429,4033.6,4033.5,0.00023426]
[1754694709232,18.75491429,4033.6,4033.5,0.00023426]
[1754694709453,18.75491429,4033.6,4033.4,0.001]
[1754694709454,6.02923639,4033.5,4033.4,0.001]
[1754694709655,6.02923639,4033.5,4033.1,0.101]
[1754694709656,2.4794208,4033.2,4033.1,0.101]
[1754694709846,13.90320337,4033.2,4033.1,0.101]
[1754694710024,15.43108293,4033.2,4033.1,0.101]
[1754694710219,15.55508293,4033.2,4033.1,0.101]
[1754694710423,15.56350135,4033.2,4033.1,0.101]
[1754694710686,19.1153991,4033.2,4033.1,0.101]
[1754694710855,22.78271352,4033.2,4033.1,0.101]
[1754694711444,22.1153991,4033.2,4033.1,0.101]
[1754694711949,23.00213476,4033.2,4033.1,0.101]
[1754694712145,22.1153991,4033.2,4033.1,0.101]
[1754694712450,23.00310747,4033.2,4033.1,0.101]
[1754694713257,22.10698068,4033.2,4033.1,0.101]
[1754694713465,22.1153991,4033.2,4033.1,0.101]
[1754694713648,13.59583753,4033.2,4033.1,0.101]
[1754694713848,12.60535595,4033.2,4033.1,0.101]
[1754694714050,12.59693753,4033.2,4033.1,0.101]
[1754694714364,4.99097232,4033.2,4033.1,0.101]
[1754694714566,4.532,4033.2,4033.1,0.101]
[1754694714759,5.0092,4033.2,4033.1,0.101]
[1754694714950,4.9082,4033.2,4033.1,0.101]
[1754694716469,7.3876208,4033.2,4033.1,0.101]
[1754694716641,4.9082,4033.2,4033.1,0.101]
[1754694716971,8.41539524,4033.2,4033.1,0.101]
[1754694717275,8.38440248,4033.2,4033.1,0.101]
[1754694717865,8.56775538,4033.2,4033.1,0.101]
[1754694718569,8.82015538,4033.2,4033.1,0.101]
[1754694718769,9.35230751,4033.2,4033.1,0.101]
[1754694718963,9.36072944,4033.2,4033.1,0.101]
[1754694720175,9.46172944,4033.2,4033.1,0.101]
[1754694720472,9.20932944,4033.2,4033.1,0.101]
[1754694721777,9.67272944,4033.2,4033.1,0.101]
[1754694724076,9.20932944,4033.2,4033.1,0.101]
[1754694728385,9.67272944,4033.2,4033.1,0.101]
[1754694728852,9.67304914,4033.2,4033.1,0.101]
[1754694730270,9.20964914,4033.2,4033.1,0.101]
[1754694730474,9.67304914,4033.2,4033.1,0.101]
[1754694730886,9.20964914,4033.2,4033.1,0.101]
[1754694732381,5.70302834,4033.2,4033.1,0.101]
[1754694732583,4.70624666,4033.2,4033.1,0.5509]
[1754694732749,5.24782473,4033.2,4033.1,0.5509]
[1754694733549,7.72724553,4033.2,4033.1,0.101]
[1754694733751,7.8493098,4033.2,4033.1,0.5509]
[1754694735387,5.369889,4033.2,4033.1,0.5509]
[1754694737005,5.24782473,4033.2,4033.1,0.5509]
[1754694737899,7.72724553,4033.2,4033.1,0.5509]
[1754694738200,3.97024553,4033.2,4033.1,0.5509]
[1754694738398,7.1947737,4033.2,4033.1,0.5509]
[1754694738574,7.72724553,4033.2,4033.1,0.5509]
[1754694739797,3.97024553,4033.2,4033.1,0.5509]
[1754694740003,7.72724553,4033.2,4033.1,0.5509]
[1754694740509,5.24782473,4033.2,4033.1,0.5509]
[1754694741402,7.72724553,4033.2,4033.1,0.5509]
[1754694741984,3.97024553,4033.2,4033.1,0.5509]
[1754694742282,7.72724553,4033.2,4033.1,0.5509]
[1754694743595,8.20444553,4033.2,4033.1,0.5509]
[1754694744003,8.20444553,4033.2,4033.1,0.101]
[1754694745105,8.60367322,4033.2,4033.1,0.101]
[1754694745404,9.26926301,4033.2,4033.1,0.101]
[1754694745603,8.60367322,4033.2,4033.1,0.101]
[1754694745785,9.2776831,4033.2,4033.1,0.101]
[1754694747588,17.78882625,4033.2,4033.1,0.101]
[1754694747783,18.23832625,4033.2,4033.1,0.101]
[1754694748189,17.57273646,4033.2,4033.1,0.101]
[1754694752020,8.61209331,4033.2,4033.1,0.101]
[1754694758809,9.49980168,4033.2,4033.1,0.101]
[1754694760834,21.59960769,4033.2,4033.1,0.101]
[1754694761130,20.71189932,4033.2,4033.1,0.101]
[1754694761549,20.71189097,4033.2,4033.1,0.101]
[1754694763824,20.26239097,4033.2,4033.1,0.101]
[1754694766637,11.75124782,4033.2,4033.1,0.101]
[1754694767436,7.51704782,4033.2,4033.1,0.101]
[1754694767637,12.02423828,4033.2,4033.1,0.101]
[1754694767940,8.26823828,4033.2,4033.1,0.5606]
[1754694768110,7.8525107,4033.2,4033.1,0.5606]
[1754694768308,7.18466562,4033.2,4033.1,0.5606]
[1754694768634,7.17624553,4033.2,4033.1,0.5606]
[1754694768835,7.72624553,4033.2,4033.1,0.5606]
[1754694771155,1.49082473,4033.2,4033.1,0.5606]
[1754694771356,4.43,4033.2,4033.1,0.563]
[1754694771554,4.96247183,4033.2,4033.1,0.563]
[1754694771753,4.41247183,4033.2,4033.1,0.563]
[1754694771958,3.88,4033.2,4033.1,0.563]
[1754694772250,4.43,4033.2,4033.1,0.5606]
[1754694772447,0.674,4033.2,4033.1,0.5606]
[1754694772623,4.43,4033.2,4033.1,0.86735994]
[1754694772823,0.124,4033.2,4033.1,3.34684222]
[1754694773051,3.88,4033.2,4033.1,3.34684222]
[1754694774853,0.124,4033.2,4033.1,3.34684222]
[1754694775039,3.88,4033.2,4033.1,3.34684222]
[1754694779161,3.88,4033.2,4033.1,3.34444222]
[1754694779830,3.88,4033.2,4033.1,0.101]
[1754694780231,4.3484,4033.2,4033.1,0.101]
[1754694780557,4.8984,4033.2,4033.1,0.101]
[1754694781467,7.3778208,4033.2,4033.1,0.101]
[1754694783337,7.8468208,4033.2,4033.1,0.101]
[1754694783831,7.3778208,4033.2,4033.1,0.101]
[1754694785233,9.01633516,4033.2,4033.1,0.101]
[1754694786346,7.3778208,4033.2,4033.1,0.101]
[1754694787460,7.8468208,4033.2,4033.1,0.101]
[1754694789151,8.38023821,4033.2,4033.1,0.101]
[1754694790884,8.38865815,4033.2,4033.1,0.101]
[1754694791179,8.48965815,4033.2,4033.1,0.101]
[1754694791680,11.04494824,4033.2,4033.1,0.101]
[1754694794559,14.04494824,4033.2,4033.1,0.101]
[1754694794751,14.71279332,4033.2,4033.1,0.101]
[1754694794956,14.04494824,4033.2,4033.1,0.101]
[1754694795157,14.22718528,4033.2,4033.1,0.101]
[1754694798387,13.75818528,4033.2,4033.1,0.101]
[1754694798588,14.22718528,4033.2,4033.1,0.101]
[1754694800392,13.75818528,4033.2,4033.1,0.101]
[1754694803459,14.42448589,4033.2,4033.1,0.101]
[1754694804993,13.75818528,4033.2,4033.1,0.101]
[1754694807196,14.19898528,4033.2,4033.1,0.101]
[1754694807595,15.08933025,4033.2,4033.1,0.101]
[1754694808071,0.55,4032.9,4032.6,1e-08]
[1754694808265,3.0299127,4032.4,4031.3,0.4655]
[1754694808571,19.74922155,4032.4,4031.6,0.4655]
[1754694808766,19.81822265,4032.4,4031.6,0.4655]
[1754694809091,14.58510003,4032.4,4031.3,0.4655]
[1754694809283,23.10461224,4032.4,4031.4,0.4655]
[1754694809486,23.09619069,4032.4,4031.4,0.4655]
[1754694809882,23.09622006,4032.4,4030.7,2.48091535]
[1754694810201,23.24315824,4032.4,4031.2,0.4655]
[1754694810388,23.10431356,4032.4,4031.2,0.4655]
[1754694812784,30.86790004,4032.4,4032.3,1e-08]
[1754694812980,29.53470714,4032.4,4032.3,1e-08]
[1754694814563,29.65898454,4032.4,4032.3,1e-08]
[1754694814804,6.0299742,4032.3,4032.2,1e-08]
[1754694815008,10.10738376,4032.3,4032.2,1e-08]
[1754694815174,11.00988376,4032.3,4032.2,1e-08]
[1754694815377,11.10988376,4032.3,4032.2,1e-08]
[1754694815576,6.03022024,4031.9,4031.8,0.001]
[1754694815776,18.9547808,4031.9,4031.8,0.001]
[1754694816080,22.08949047,4031.9,4031.8,0.001]
[1754694816699,22.55499047,4031.9,4031.8,0.001]
[1754694816903,23.44216843,4031.9,4031.8,0.001]
[1754694817272,22.56341206,4031.9,4031.8,0.001]
[1754694817474,23.45059002,4031.9,4031.8,0.001]
[1754694818188,22.12261206,4031.9,4031.8,0.001]
[1754694818565,22.11419047,4031.9,4031.8,0.001]
[1754694818810,22.12261458,4031.9,4031.8,0.001]
[1754694824423,22.24807276,4031.9,4031.8,0.001]
[1754694826209,19.23422961,4031.9,4031.8,0.4665]
[1754694826577,19.89097181,4031.9,4031.8,0.4665]
[1754694826782,19.89939684,4031.9,4031.8,0.4665]
[1754694827079,19.89940394,4031.9,4031.8,0.4665]
[1754694828795,19.69593053,4031.9,4031.8,0.001]
[1754694829314,20.57468346,4031.9,4031.8,0.001]
[1754694829518,20.58310855,4031.9,4031.8,0.001]
[1754694830846,19.69593059,4031.9,4031.8,0.4665]
[1754694831200,19.6875055,4031.9,4031.8,0.4665]
[1754694831604,19.23423059,4031.9,4031.8,0.4665]
[1754694832288,20.12140855,4031.9,4031.8,0.4665]
[1754694832714,20.58310855,4031.9,4031.8,0.4665]
[1754694833420,20.12140855,4031.9,4031.8,0.001]
[1754694834115,20.72200034,4031.9,4031.8,0.001]
[1754694834322,19.83482238,4031.9,4031.8,0.001]
[1754694836320,21.16590062,4031.9,4031.8,0.001]
[1754694837018,21.15747553,4031.9,4031.8,0.001]
[1754694837217,19.82639729,4031.9,4031.8,0.001]
[1754694837427,19.83482213,4031.9,4031.8,0.001]
[1754694838305,6.03046632,4031.5,4031.4,0.4324]
[1754694838487,10.58177552,4031.5,4031.4,0.4324]
[1754694838692,10.59020036,4031.5,4031.4,0.4324]
[1754694838944,11.02260036,4031.5,4031.4,0.4324]
[1754694840222,11.02398428,4031.5,4031.4,0.4324]
[1754694840540,13.24974087,4031.5,4031.4,0.4324]
[1754694840689,13.25015768,4031.5,4031.4,0.4324]
[1754694840887,13.72955768,4031.5,4031.4,0.4324]
[1754694841339,6.03052785,4031.4,4031.3,0.001]
[1754694841626,7.18403778,4031.4,4031.3,0.001]
[1754694841795,9.56798315,4031.4,4031.3,0.001]
[1754694842396,10.00038315,4031.4,4031.3,0.001]
[1754694843919,10.00038315,4031.4,4031.3,0.4334]
[1754694844103,9.52098315,4031.4,4031.3,0.4334]
[1754694844826,9.52098315,4031.4,4031.3,0.001]
[1754694845003,10.00038315,4031.4,4031.3,0.001]
[1754694845396,10.00038315,4031.4,4031.3,0.4334]
[1754694845697,9.52098315,4031.4,4031.3,0.4334]
[1754694848757,9.64704828,4031.4,4031.3,0.4334]
[1754694849327,10.12644828,4031.4,4031.3,0.4334]
[1754694849863,10.12644828,4031.4,4031.3,0.001]
[1754694851439,10.12649729,4031.4,4031.3,0.001]
[1754694859351,9.64709729,4031.4,4031.3,0.4334]
[1754694859586,11.02657676,4031.4,4031.3,0.4334]
[1754694859807,6.59551163,4031.4,4031.3,0.4334]
[1754694859956,9.77032918,4031.4,4031.3,0.4334]
[1754694860162,11.21269442,4031.4,4031.3,0.4334]
[1754694862486,10.32032918,4031.4,4031.3,0.4334]
[1754694862691,11.21269442,4031.4,4031.3,0.4334]
[1754694863385,10.32032918,4031.4,4031.3,0.4334]
[1754694864702,11.98746322,4031.4,4031.3,0.001]
[1754694865406,11.99588829,4031.4,4031.3,0.001]
[1754694866177,11.99588829,4031.4,4031.3,0.4431]
[1754694866389,12.47078829,4031.4,4031.3,0.001]
[1754694868607,12.47078829,4031.4,4031.3,0.4431]
[1754694870819,13.3627454,4031.4,4031.3,0.4431]
[1754694873616,12.47078829,4031.4,4031.3,0.4431]
[1754694874111,12.47078829,4031.4,4031.3,0.001]
[1754694876814,19.56883692,4031.4,4031.3,0.001]
[1754694877117,7.60512122,4031.4,4031.3,0.4431]
[1754694877302,10.32775425,4031.4,4031.3,0.4431]
[1754694877510,10.31932918,4031.4,4031.3,0.4431]
[1754694884219,8.50768074,4031.4,4031.3,0.4431]
[1754694884390,4.28880133,4031.4,4031.3,0.4431]
[1754694884592,4.41280133,4031.4,4031.3,0.4431]
[1754694884796,4.96280133,4031.4,4031.3,0.4465]
[1754694885025,4.96280133,4031.4,4031.3,0.4431]
[1754694886432,4.428,4031.4,4031.3,0.4431]
[1754694886636,4.96280133,4031.4,4031.3,0.4431]
[1754694888003,4.428,4031.4,4031.3,0.4431]
[1754694888207,4.96280133,4031.4,4031.3,0.4431]
[1754694888635,4.428,4031.4,4031.3,0.4431]
[1754694889936,4.96280133,4031.4,4031.3,0.4431]
[1754694891428,4.428,4031.4,4031.3,0.4431]
[1754694891795,4.428,4031.4,4031.3,0.74548591]
[1754694891796,4.427,4031.4,4031.3,0.74548591]
[1754694892099,4.427,4031.4,4031.3,2.92708938]
[1754694893016,4.427,4031.4,4031.3,2.92368938]
[1754694893224,4.427,4031.4,4031.3,0.4431]
[1754694893626,3.877,4031.4,4031.3,0.4431]
[1754694894226,4.3313,4031.4,4031.3,0.001]
[1754694896096,4.3313,4031.4,4031.3,0.4485]
[1754694897000,3.877,4031.4,4031.3,0.75142193]
[1754694897640,3.87532031,4031.4,4031.3,0.75142193]
[1754694900635,4.87962031,4031.4,4031.3,0.001]
[1754694900836,5.41382421,4031.4,4031.3,0.001]
[1754694901238,4.87962031,4031.4,4031.3,0.001]
[1754694901604,5.41393222,4031.4,4031.3,0.001]
[1754694902218,5.41394757,4031.4,4031.3,0.001]
[1754694902420,16.48994963,4031.4,4031.3,0.001]
[1754694902623,7.89447542,4031.4,4031.3,0.001]
[1754694903049,7.9028976,4031.4,4031.3,0.001]
[1754694903337,7.89447542,4031.4,4031.3,0.001]
[1754694903537,3.68717542,4031.4,4031.3,0.001]
[1754694903852,7.35914816,4031.4,4031.3,0.001]
[1754694904054,7.89347542,4031.4,4031.3,0.001]